[Event "Late-Titled-Tuesday-Blitz-March-19-2024"]
[Site "Chess.com"]
[Date "2024.03.19"]
[Round "1"]
[White "diamonds13"]
[Black "Gentlejimmy7"]
[Result "1-0"]
[WhiteElo "2360"]
[BlackElo "2645"]
[TimeControl "180+1"]
[EndTime "14:08:03 PDT"]
[Termination "diamonds13 won by resignation"]

1. d4 {[%clk 0:02:59.5]} 1... b6 {[%clk 0:02:49.8]} 2. c4 {[%clk 0:02:57.8]}
2... Bb7 {[%clk 0:02:47.2]} 3. Nc3 {[%clk 0:02:56.5]} 3... Nf6 {[%clk
0:02:46.3]} 4. d5 {[%clk 0:02:55.5]} 4... e6 {[%clk 0:02:45.3]} 5. e4 {[%clk
0:02:55.3]} 5... exd5 {[%clk 0:02:39.9]} 6. exd5 {[%clk 0:02:55.2]} 6... Bb4
{[%clk 0:02:38.2]} 7. Bd2 {[%clk 0:02:44.8]} 7... O-O {[%clk 0:02:37.9]} 8. Bd3
{[%clk 0:02:44.3]} 8... Re8+ {[%clk 0:02:35.3]} 9. Nge2 {[%clk 0:02:44]} 9...
Na6 {[%clk 0:02:26.6]} 10. a3 {[%clk 0:02:23.7]} 10... Bxc3 {[%clk 0:02:26.1]}
11. Bxc3 {[%clk 0:02:23.8]} 11... Nc5 {[%clk 0:02:27]} 12. O-O {[%clk 0:02:06]}
12... a5 {[%clk 0:02:20]} 13. Bc2 {[%clk 0:02:02.9]} 13... a4 {[%clk 0:02:11.1]}
14. Ng3 {[%clk 0:01:54]} 14... Ba6 {[%clk 0:02:02.3]} 15. Qd4 {[%clk 0:01:39.5]}
15... d6 {[%clk 0:02:00.7]} 16. Nf5 {[%clk 0:01:33.6]} 16... Re5 {[%clk
0:01:48.4]} 17. Qh4 {[%clk 0:01:27]} 17... Nfe4 {[%clk 0:01:31.4]} 18. Qxd8+
{[%clk 0:01:15.1]} 18... Rxd8 {[%clk 0:01:30.7]} 19. Bxe5 {[%clk 0:01:14.9]}
19... dxe5 {[%clk 0:01:31.6]} 20. Ne7+ {[%clk 0:01:12.3]} 20... Kf8 {[%clk
0:01:29.4]} 21. Nc6 {[%clk 0:01:12.9]} 21... Re8 {[%clk 0:01:26.8]} 22. Rfe1
{[%clk 0:01:07.6]} 22... Nd6 {[%clk 0:00:56.6]} 23. Nxe5 {[%clk 0:01:02.3]}
23... Nxc4 {[%clk 0:00:54]} 24. Nxc4 {[%clk 0:00:51]} 24... Bxc4 {[%clk
0:00:54.1]} 25. Rxe8+ {[%clk 0:00:48.3]} 25... Kxe8 {[%clk 0:00:55]} 26. Re1+
{[%clk 0:00:47.6]} 26... Kd7 {[%clk 0:00:53.8]} 27. Bxh7 {[%clk 0:00:46.6]}
27... Bxd5 {[%clk 0:00:51.7]} 28. Bf5+ {[%clk 0:00:43]} 28... Kd6 {[%clk
0:00:50.4]} 29. f3 {[%clk 0:00:37.6]} 29... g6 {[%clk 0:00:49.4]} 30. Bc2 {[%clk
0:00:36.5]} 30... b5 {[%clk 0:00:48.8]} 31. h4 {[%clk 0:00:35.8]} 31... Ne6
{[%clk 0:00:48.6]} 32. Rd1 {[%clk 0:00:33.9]} 32... Ke5 {[%clk 0:00:44.4]} 33.
Kf2 {[%clk 0:00:32.6]} 33... Nd4 {[%clk 0:00:42.6]} 34. Bd3 {[%clk 0:00:31.9]}
34... c5 {[%clk 0:00:31.4]} 35. Re1+ {[%clk 0:00:31.9]} 35... Kd6 {[%clk
0:00:30.4]} 36. Be4 {[%clk 0:00:32.5]} 36... Be6 {[%clk 0:00:26.9]} 37. g4
{[%clk 0:00:31.8]} 37... b4 {[%clk 0:00:24.1]} 38. h5 {[%clk 0:00:30.1]} 38...
gxh5 {[%clk 0:00:22.1]} 39. gxh5 {[%clk 0:00:29.7]} 39... f5 {[%clk 0:00:23]}
40. h6 {[%clk 0:00:28.1]} 40... Bg8 {[%clk 0:00:21.6]} 41. Bd3 {[%clk
0:00:23.8]} 41... Bh7 {[%clk 0:00:20.8]} 42. Rg1 {[%clk 0:00:23]} 42... Ne6
{[%clk 0:00:21]} 43. Bc4 {[%clk 0:00:19.6]} 43... Nf8 {[%clk 0:00:16.4]} 44. Bg8
{[%clk 0:00:19.3]} 44... Ke5 {[%clk 0:00:14.2]} 45. Bxh7 {[%clk 0:00:19]} 45...
Nxh7 {[%clk 0:00:15.1]} 46. Rg7 {[%clk 0:00:19]} 46... Nf8 {[%clk 0:00:12.9]}
47. h7 {[%clk 0:00:19.6]} 47... Nxh7 {[%clk 0:00:13.3]} 48. Rxh7 {[%clk
0:00:20.2]} 48... bxa3 {[%clk 0:00:14.2]} 49. bxa3 {[%clk 0:00:19.8]} 49... Kd4
{[%clk 0:00:15.1]} 50. Rf7 {[%clk 0:00:19.4]} 50... Kc3 {[%clk 0:00:14.8]} 51.
Rxf5 {[%clk 0:00:19.3]} 51... c4 {[%clk 0:00:15.5]} 52. Rb5 {[%clk 0:00:18.7]}
52... Kd2 {[%clk 0:00:15.2]} 53. f4 {[%clk 0:00:18.9]} 53... c3 {[%clk
0:00:16.1]} 54. f5 {[%clk 0:00:19.2]} 54... c2 {[%clk 0:00:17]} 55. Rc5 {[%clk
0:00:19.5]} 55... c1=Q {[%clk 0:00:16.8]} 56. Rxc1 {[%clk 0:00:20.1]} 56... Kxc1
{[%clk 0:00:17.7]} 57. f6 {[%clk 0:00:20.5]} 57... Kb2 {[%clk 0:00:18.6]} 58. f7
{[%clk 0:00:21.1]} 58... Kxa3 {[%clk 0:00:19.5]} 59. f8=Q+ {[%clk 0:00:21.4]}
59... Kb3 {[%clk 0:00:20.4]} 60. Qb8+ {[%clk 0:00:20.9]} 60... Kc3 {[%clk
0:00:20.7]} 61. Qc7+ {[%clk 0:00:21.2]} 61... Kb3 {[%clk 0:00:21.6]} 62. Qb6+
{[%clk 0:00:21.7]} 62... Kc3 {[%clk 0:00:22.1]} 63. Qc5+ {[%clk 0:00:22.2]}
63... Kb3 {[%clk 0:00:23]} 64. Qd4 {[%clk 0:00:22.4]} 64... a3 {[%clk
0:00:23.9]} 65. Qa1 {[%clk 0:00:22.7]} 65... a2 {[%clk 0:00:24.2]} 66. Ke3
{[%clk 0:00:23.4]} 66... Ka3 {[%clk 0:00:25.1]} 67. Kd3 {[%clk 0:00:23.3]} 67...
Kb3 {[%clk 0:00:26]} 68. Kd2 {[%clk 0:00:22.1]} 68... Ka3 {[%clk 0:00:25.8]} 69.
Kc3 {[%clk 0:00:21.7]} 1-0

[Event "Late-Titled-Tuesday-Blitz-March-19-2024"]
[Site "Chess.com"]
[Date "2024.03.19"]
[Round "1"]
[White "m_ezat"]
[Black "MikeSailer"]
[Result "1-0"]
[WhiteElo "2596"]
[BlackElo "2127"]
[TimeControl "180+1"]
[EndTime "14:08:03 PDT"]
[Termination "m_ezat won by checkmate"]

1. d4 {[%clk 0:02:49]} 1... d5 {[%clk 0:02:58.9]} 2. c4 {[%clk 0:02:48.9]} 2...
Bf5 {[%clk 0:02:56.2]} 3. cxd5 {[%clk 0:02:45.7]} 3... Bxb1 {[%clk 0:02:54.7]}
4. Qa4+ {[%clk 0:02:45.6]} 4... c6 {[%clk 0:02:55]} 5. dxc6 {[%clk 0:02:40.8]}
5... Nxc6 {[%clk 0:02:55]} 6. Rxb1 {[%clk 0:02:38.6]} 6... e5 {[%clk 0:02:55.5]}
7. a3 {[%clk 0:02:37.1]} 7... exd4 {[%clk 0:02:54.9]} 8. e3 {[%clk 0:02:36]}
8... dxe3 {[%clk 0:02:03.8]} 9. Bxe3 {[%clk 0:02:30.3]} 9... Nf6 {[%clk
0:02:00.7]} 10. Bb5 {[%clk 0:02:30]} 10... Qd6 {[%clk 0:01:42.4]} 11. Rc1 {[%clk
0:02:25.1]} 11... Rc8 {[%clk 0:01:35.2]} 12. Qxa7 {[%clk 0:02:23.1]} 12... Qc7
{[%clk 0:00:35]} 13. Nf3 {[%clk 0:02:10.5]} 13... Bd6 {[%clk 0:00:33.9]} 14. Nd4
{[%clk 0:02:08.6]} 14... O-O {[%clk 0:00:29.5]} 15. Nxc6 {[%clk 0:02:05.2]}
15... bxc6 {[%clk 0:00:20.5]} 16. Qxc7 {[%clk 0:02:04.8]} 16... Rxc7 {[%clk
0:00:18.9]} 17. Rxc6 {[%clk 0:02:02.8]} 17... Rb7 {[%clk 0:00:17.7]} 18. Bc4
{[%clk 0:01:18.9]} 18... Be5 {[%clk 0:00:16.6]} 19. b4 {[%clk 0:01:15.4]} 19...
Bc3+ {[%clk 0:00:16.6]} 20. Ke2 {[%clk 0:01:15.2]} 20... Bb2 {[%clk 0:00:17.3]}
21. Ba6 {[%clk 0:00:40.8]} 21... Rbb8 {[%clk 0:00:16.2]} 22. b5 {[%clk
0:00:29.6]} 22... Nd5 {[%clk 0:00:15.5]} 23. a4 {[%clk 0:00:28]} 23... Nc3+
{[%clk 0:00:14.6]} 24. Kf3 {[%clk 0:00:26.1]} 24... Nxa4 {[%clk 0:00:15.3]} 25.
Rb1 {[%clk 0:00:24.9]} 25... Be5 {[%clk 0:00:13.2]} 26. b6 {[%clk 0:00:24.6]}
26... Nxb6 {[%clk 0:00:10.5]} 27. Rbxb6 {[%clk 0:00:22.9]} 27... Rxb6 {[%clk
0:00:10.3]} 28. Rxb6 {[%clk 0:00:23.1]} 28... h6 {[%clk 0:00:09.8]} 29. Bc4
{[%clk 0:00:22.9]} 29... Kh7 {[%clk 0:00:09.1]} 30. Rb7 {[%clk 0:00:22]} 30...
f6 {[%clk 0:00:08.1]} 31. h4 {[%clk 0:00:21.9]} 31... Rd8 {[%clk 0:00:06.9]} 32.
h5 {[%clk 0:00:21.5]} 32... Re8 {[%clk 0:00:05.6]} 33. Bf7 {[%clk 0:00:21]}
33... Rf8 {[%clk 0:00:05.6]} 34. Bg6+ {[%clk 0:00:21.3]} 34... Kh8 {[%clk
0:00:06.1]} 35. g4 {[%clk 0:00:21.5]} 35... Rd8 {[%clk 0:00:05.7]} 36. Ke4
{[%clk 0:00:21.4]} 36... Ra8 {[%clk 0:00:05.5]} 37. f4 {[%clk 0:00:21.1]} 37...
Bd6 {[%clk 0:00:05]} 38. Rd7 {[%clk 0:00:20.2]} 38... Bf8 {[%clk 0:00:05.3]} 39.
Bd4 {[%clk 0:00:17.1]} 39... Rb8 {[%clk 0:00:05.4]} 40. Ra7 {[%clk 0:00:13.4]}
40... Rc8 {[%clk 0:00:05.9]} 41. Bf5 {[%clk 0:00:11.9]} 41... Rb8 {[%clk
0:00:06.3]} 42. Rc7 {[%clk 0:00:11.9]} 42... Re8+ {[%clk 0:00:06.9]} 43. Kf3
{[%clk 0:00:11.2]} 43... Ra8 {[%clk 0:00:07.3]} 44. Rc8 {[%clk 0:00:11.4]} 44...
Rxc8 {[%clk 0:00:07.4]} 45. Bxc8 {[%clk 0:00:11.5]} 45... Kg8 {[%clk 0:00:08.3]}
46. Be6+ {[%clk 0:00:12]} 46... Kh8 {[%clk 0:00:09]} 47. Ke4 {[%clk 0:00:12.6]}
47... Be7 {[%clk 0:00:09.5]} 48. Kf5 {[%clk 0:00:12.9]} 48... Bf8 {[%clk
0:00:10.4]} 49. Kg6 {[%clk 0:00:13.2]} 49... Bb4 {[%clk 0:00:10.1]} 50. Bf7
{[%clk 0:00:13.8]} 50... Bf8 {[%clk 0:00:10.1]} 51. g5 {[%clk 0:00:13.8]} 51...
fxg5 {[%clk 0:00:10.2]} 52. fxg5 {[%clk 0:00:14.1]} 52... hxg5 {[%clk
0:00:10.6]} 53. h6 {[%clk 0:00:14.7]} 53... Be7 {[%clk 0:00:08.3]} 54. hxg7#
{[%clk 0:00:14.5]} 1-0

[Event "Late-Titled-Tuesday-Blitz-March-19-2024"]
[Site "Chess.com"]
[Date "2024.03.19"]
[Round "1"]
[White "Nicolik"]
[Black "maciek_92"]
[Result "0-1"]
[WhiteElo "2519"]
[BlackElo "2900"]
[TimeControl "180+1"]
[EndTime "14:08:05 PDT"]
[Termination "maciek_92 won by resignation"]

1. d4 {[%clk 0:03:00.9]} 1... Nf6 {[%clk 0:02:59.2]} 2. c4 {[%clk 0:02:58.4]}
2... e6 {[%clk 0:02:59.2]} 3. Nf3 {[%clk 0:02:57.4]} 3... b6 {[%clk 0:02:59.4]}
4. g3 {[%clk 0:02:57.6]} 4... Ba6 {[%clk 0:02:59.9]} 5. Qc2 {[%clk 0:02:56.8]}
5... Bb4+ {[%clk 0:02:53.5]} 6. Bd2 {[%clk 0:02:54.5]} 6... Bxd2+ {[%clk
0:02:52.8]} 7. Nbxd2 {[%clk 0:02:54.7]} 7... O-O {[%clk 0:02:52.9]} 8. e4 {[%clk
0:02:53.6]} 8... d6 {[%clk 0:02:53.5]} 9. Bd3 {[%clk 0:02:49.9]} 9... h6 {[%clk
0:02:52.3]} 10. O-O-O {[%clk 0:02:49.3]} 10... Nc6 {[%clk 0:02:47.8]} 11. a3
{[%clk 0:02:42.7]} 11... e5 {[%clk 0:02:41.8]} 12. d5 {[%clk 0:02:39.8]} 12...
Ne7 {[%clk 0:02:41.5]} 13. Rdg1 {[%clk 0:02:32.5]} 13... c6 {[%clk 0:02:36.8]}
14. dxc6 {[%clk 0:02:26]} 14... Nxc6 {[%clk 0:02:36.8]} 15. g4 {[%clk
0:02:26.7]} 15... Nd7 {[%clk 0:02:34.3]} 16. g5 {[%clk 0:02:24.3]} 16... hxg5
{[%clk 0:02:25.1]} 17. h4 {[%clk 0:02:23.7]} 17... g4 {[%clk 0:02:24.5]} 18.
Rxg4 {[%clk 0:02:22]} 18... Nf6 {[%clk 0:02:19.3]} 19. Rg5 {[%clk 0:02:17.6]}
19... Rc8 {[%clk 0:02:20]} 20. Rhg1 {[%clk 0:02:15.1]} 20... Ne8 {[%clk
0:02:20.1]} 21. Kb1 {[%clk 0:01:52.2]} 21... Qf6 {[%clk 0:02:06.1]} 22. Qd1
{[%clk 0:01:42.7]} 22... Na5 {[%clk 0:01:55.7]} 23. Qf1 {[%clk 0:01:38.3]} 23...
Nxc4 {[%clk 0:01:51.7]} 24. Nxc4 {[%clk 0:01:24.1]} 24... Bxc4 {[%clk
0:01:51.1]} 25. Bxc4 {[%clk 0:01:24.1]} 25... Qxf3 {[%clk 0:01:51.3]} 26. Bd5
{[%clk 0:01:21.5]} 26... Rc5 {[%clk 0:01:35]} 27. Rf5 {[%clk 0:01:16.9]} 27...
Qxf5 {[%clk 0:01:31.3]} 28. exf5 {[%clk 0:01:15.8]} 28... Rxd5 {[%clk
0:01:32.2]} 29. Qg2 {[%clk 0:01:10.1]} 29... Rd4 {[%clk 0:01:30.5]} 30. f6
{[%clk 0:01:09.4]} 30... Kh7 {[%clk 0:01:21.8]} 31. fxg7 {[%clk 0:01:05.1]}
31... Rg8 {[%clk 0:01:22.1]} 32. Qb7 {[%clk 0:00:53.9]} 32... Rf4 {[%clk
0:01:18.2]} 33. Qxa7 {[%clk 0:00:53.2]} 33... Rxf2 {[%clk 0:01:13.6]} 34. Qxb6
{[%clk 0:00:53.3]} 34... Rf6 {[%clk 0:01:10.3]} 35. Qc6 {[%clk 0:00:51.2]} 35...
Nxg7 {[%clk 0:01:09]} 36. Qe4+ {[%clk 0:00:49.1]} 36... Kh6 {[%clk 0:01:06.8]}
37. Rg5 {[%clk 0:00:45.9]} 37... Rf4 {[%clk 0:00:52.6]} 38. Qe1 {[%clk
0:00:34.2]} 38... Rc8 {[%clk 0:00:48.9]} 39. Qg3 {[%clk 0:00:26]} 39... Ne6
{[%clk 0:00:45.7]} 40. Rg8 {[%clk 0:00:22.4]} 40... Rxg8 {[%clk 0:00:38.6]} 41.
Qxg8 {[%clk 0:00:23.3]} 41... e4 {[%clk 0:00:39.4]} 42. Qg3 {[%clk 0:00:20.5]}
42... d5 {[%clk 0:00:39.8]} 43. a4 {[%clk 0:00:20.3]} 43... Rf3 {[%clk 0:00:37]}
44. Qe5 {[%clk 0:00:20.5]} 44... Nf4 {[%clk 0:00:34.6]} 45. a5 {[%clk
0:00:18.5]} 45... e3 {[%clk 0:00:29.9]} 46. a6 {[%clk 0:00:17.6]} 46... e2
{[%clk 0:00:27.1]} 47. a7 {[%clk 0:00:17.6]} 47... Rf1+ {[%clk 0:00:16.8]} 48.
Ka2 {[%clk 0:00:17.9]} 48... Nd3 {[%clk 0:00:15.6]} 49. Qe3+ {[%clk 0:00:17]}
49... Kg7 {[%clk 0:00:14.2]} 50. a8=Q {[%clk 0:00:08.7]} 50... e1=Q {[%clk
0:00:14.2]} 51. Qxe1 {[%clk 0:00:08.6]} 51... Rxe1 {[%clk 0:00:15.1]} 52. Qxd5
{[%clk 0:00:07]} 52... Nb4+ {[%clk 0:00:15.3]} 53. Kb3 {[%clk 0:00:06.6]} 53...
Nxd5 {[%clk 0:00:16.2]} 54. Kc4 {[%clk 0:00:06.8]} 54... Nf6 {[%clk 0:00:17.1]}
55. b4 {[%clk 0:00:06.9]} 55... Re4+ {[%clk 0:00:18]} 56. Kc5 {[%clk 0:00:07.1]}
56... Rxh4 {[%clk 0:00:18.9]} 57. b5 {[%clk 0:00:07.7]} 57... Rh5+ {[%clk
0:00:19.8]} 58. Kc6 {[%clk 0:00:08.2]} 58... Ne4 {[%clk 0:00:20]} 59. b6 {[%clk
0:00:08.7]} 59... Rc5+ {[%clk 0:00:20.7]} 60. Kd7 {[%clk 0:00:09]} 60... Rb5
{[%clk 0:00:20.3]} 61. Kc6 {[%clk 0:00:09.5]} 61... Rxb6+ {[%clk 0:00:20.8]} 62.
Kxb6 {[%clk 0:00:10.4]} 62... f5 {[%clk 0:00:21.2]} 0-1

[Event "Late-Titled-Tuesday-Blitz-March-19-2024"]
[Site "Chess.com"]
[Date "2024.03.19"]
[Round "1"]
[White "whiteglovethief"]
[Black "kingofthenil"]
[Result "0-1"]
[WhiteElo "2454"]
[BlackElo "2765"]
[TimeControl "180+1"]
[EndTime "14:08:08 PDT"]
[Termination "kingofthenil won by resignation"]

1. d4 {[%clk 0:02:56.7]} 1... e6 {[%clk 0:02:57.9]} 2. e4 {[%clk 0:02:54.1]}
2... d5 {[%clk 0:02:55.3]} 3. Nd2 {[%clk 0:02:54.5]} 3... h6 {[%clk 0:02:53.5]}
4. Bd3 {[%clk 0:02:52.2]} 4... c5 {[%clk 0:02:52.4]} 5. dxc5 {[%clk 0:02:51.8]}
5... Bxc5 {[%clk 0:02:53.3]} 6. Qe2 {[%clk 0:02:51.9]} 6... Nf6 {[%clk
0:02:52.5]} 7. Ngf3 {[%clk 0:02:51.3]} 7... O-O {[%clk 0:02:51.6]} 8. O-O {[%clk
0:02:50.6]} 8... Nbd7 {[%clk 0:02:48.5]} 9. c4 {[%clk 0:02:47.9]} 9... dxc4
{[%clk 0:02:46.2]} 10. Nxc4 {[%clk 0:02:44.2]} 10... Nb6 {[%clk 0:02:45.5]} 11.
e5 {[%clk 0:02:42.2]} 11... Nfd5 {[%clk 0:02:36.1]} 12. Qe4 {[%clk 0:02:31.8]}
12... f5 {[%clk 0:02:35.6]} 13. exf6 {[%clk 0:02:30.3]} 13... Nxf6 {[%clk
0:02:35.7]} 14. Qg6 {[%clk 0:02:25.6]} 14... Qe8 {[%clk 0:02:16.3]} 15. Nce5
{[%clk 0:02:14.7]} 15... Qxg6 {[%clk 0:02:13.3]} 16. Nxg6 {[%clk 0:02:10.2]}
16... Rd8 {[%clk 0:02:01.9]} 17. Bc2 {[%clk 0:02:09.7]} 17... Bd7 {[%clk
0:02:00.7]} 18. Bb3 {[%clk 0:02:05.5]} 18... Nbd5 {[%clk 0:01:55.7]} 19. Nf4
{[%clk 0:02:00.5]} 19... Nxf4 {[%clk 0:01:48.8]} 20. Bxf4 {[%clk 0:02:01.4]}
20... Nd5 {[%clk 0:01:49.7]} 21. Bg3 {[%clk 0:01:55.2]} 21... Rac8 {[%clk
0:01:40.7]} 22. Rfe1 {[%clk 0:01:55.1]} 22... a5 {[%clk 0:01:37.3]} 23. Rad1
{[%clk 0:01:52.3]} 23... a4 {[%clk 0:01:28.7]} 24. Bxd5 {[%clk 0:01:51.5]} 24...
exd5 {[%clk 0:01:28.8]} 25. Rxd5 {[%clk 0:01:50.8]} 25... Bg4 {[%clk 0:01:28.3]}
26. Rxd8+ {[%clk 0:01:46.9]} 26... Rxd8 {[%clk 0:01:29.2]} 27. Ne5 {[%clk
0:01:45.8]} 27... Be6 {[%clk 0:01:27.1]} 28. a3 {[%clk 0:01:40.8]} 28... Bb3
{[%clk 0:01:14.1]} 29. h4 {[%clk 0:01:33]} 29... Rd2 {[%clk 0:01:02.3]} 30. h5
{[%clk 0:01:23.1]} 30... Rxb2 {[%clk 0:01:01.9]} 31. Nd3 {[%clk 0:01:10.3]}
31... Bxa3 {[%clk 0:00:36.4]} 32. Nxb2 {[%clk 0:01:03]} 32... Bxb2 {[%clk
0:00:37.3]} 33. Bd6 {[%clk 0:00:58.8]} 33... b5 {[%clk 0:00:16.2]} 34. Re8+
{[%clk 0:00:57.8]} 34... Kf7 {[%clk 0:00:16.3]} 35. Re7+ {[%clk 0:00:58.2]}
35... Kf6 {[%clk 0:00:16.4]} 36. Ra7 {[%clk 0:00:52]} 36... Ke6 {[%clk
0:00:10.8]} 37. Bf8 {[%clk 0:00:51.7]} 37... Bc3 {[%clk 0:00:10.9]} 38. Rb7
{[%clk 0:00:48.3]} 38... Bc4 {[%clk 0:00:09.2]} 39. g4 {[%clk 0:00:47]} 39...
Kd5 {[%clk 0:00:06.2]} 40. f4 {[%clk 0:00:39.8]} 40... Kc6 {[%clk 0:00:05.6]}
41. Rxg7 {[%clk 0:00:37.1]} 41... a3 {[%clk 0:00:04.2]} 42. Ra7 {[%clk
0:00:32.1]} 42... Bd4+ {[%clk 0:00:04.1]} 43. Kg2 {[%clk 0:00:31.8]} 43... Bxa7
{[%clk 0:00:05]} 44. Bxa3 {[%clk 0:00:31.7]} 44... Be2 {[%clk 0:00:04.8]} 45.
Kg3 {[%clk 0:00:30.6]} 45... Bc5 {[%clk 0:00:05.2]} 46. Bb2 {[%clk 0:00:29]}
46... Kd5 {[%clk 0:00:05.4]} 47. g5 {[%clk 0:00:29.3]} 47... hxg5 {[%clk
0:00:05.8]} 48. h6 {[%clk 0:00:26.6]} 48... gxf4+ {[%clk 0:00:04.4]} 49. Kxf4
{[%clk 0:00:27.5]} 49... Bd3 {[%clk 0:00:05]} 50. Kg5 {[%clk 0:00:26.2]} 50...
Bd4 {[%clk 0:00:04.8]} 51. Ba3 {[%clk 0:00:21.6]} 51... Be3+ {[%clk 0:00:05]}
52. Kh5 {[%clk 0:00:21.3]} 52... Bh7 {[%clk 0:00:03.2]} 53. Bf8 {[%clk
0:00:20.7]} 53... Kc4 {[%clk 0:00:03.1]} 54. Kg4 {[%clk 0:00:17.3]} 54... b4
{[%clk 0:00:03]} 55. Kf3 {[%clk 0:00:17.6]} 55... b3 {[%clk 0:00:02.3]} 56. Kxe3
{[%clk 0:00:17.8]} 56... b2 {[%clk 0:00:02.6]} 0-1

[Event "Late-Titled-Tuesday-Blitz-March-19-2024"]
[Site "Chess.com"]
[Date "2024.03.19"]
[Round "1"]
[White "Blitzstream"]
[Black "ExchangeAB"]
[Result "1/2-1/2"]
[WhiteElo "2841"]
[BlackElo "2504"]
[TimeControl "180+1"]
[EndTime "14:08:09 PDT"]
[Termination "Game drawn - insufficient material"]

1. e4 {[%clk 0:03:00.9]} 1... c5 {[%clk 0:02:58.5]} 2. Nf3 {[%clk 0:03:01.1]}
2... d6 {[%clk 0:02:58.4]} 3. d4 {[%clk 0:03:01.3]} 3... cxd4 {[%clk 0:02:59.3]}
4. Nxd4 {[%clk 0:03:02]} 4... Nf6 {[%clk 0:02:59.5]} 5. Nc3 {[%clk 0:03:02.6]}
5... a6 {[%clk 0:02:59.9]} 6. Rg1 {[%clk 0:03:02.6]} 6... e5 {[%clk 0:02:54.5]}
7. Nb3 {[%clk 0:03:01.8]} 7... Be6 {[%clk 0:02:51.9]} 8. g4 {[%clk 0:03:02.2]}
8... d5 {[%clk 0:02:49.9]} 9. exd5 {[%clk 0:03:02.1]} 9... Nxd5 {[%clk
0:02:48.7]} 10. Nxd5 {[%clk 0:02:58.3]} 10... Qxd5 {[%clk 0:02:49.6]} 11. Be3
{[%clk 0:02:58.2]} 11... Nc6 {[%clk 0:02:39.8]} 12. Qxd5 {[%clk 0:02:57.9]}
12... Bxd5 {[%clk 0:02:39.6]} 13. O-O-O {[%clk 0:02:58.8]} 13... O-O-O {[%clk
0:02:35.3]} 14. Bb6 {[%clk 0:02:58.7]} 14... Rd7 {[%clk 0:02:31.3]} 15. g5
{[%clk 0:02:58.8]} 15... Be6 {[%clk 0:02:26.4]} 16. Be2 {[%clk 0:02:45.2]} 16...
Rxd1+ {[%clk 0:02:18.2]} 17. Rxd1 {[%clk 0:02:45]} 17... Be7 {[%clk 0:02:18.8]}
18. h4 {[%clk 0:02:38.1]} 18... h6 {[%clk 0:02:14.1]} 19. Be3 {[%clk 0:02:28.7]}
19... hxg5 {[%clk 0:02:11.8]} 20. hxg5 {[%clk 0:02:28.6]} 20... Rd8 {[%clk
0:02:08.4]} 21. Rh1 {[%clk 0:02:26]} 21... Bf5 {[%clk 0:02:03]} 22. Bc4 {[%clk
0:01:57]} 22... Bg6 {[%clk 0:01:58.5]} 23. c3 {[%clk 0:01:55.6]} 23... Kc7
{[%clk 0:01:43.4]} 24. Nc5 {[%clk 0:01:48]} 24... Bxc5 {[%clk 0:01:42.1]} 25.
Bxc5 {[%clk 0:01:46.8]} 25... b6 {[%clk 0:01:22.2]} 26. Be3 {[%clk 0:01:38.9]}
26... b5 {[%clk 0:01:22]} 27. Be2 {[%clk 0:01:36.9]} 27... Ne7 {[%clk
0:01:19.7]} 28. a4 {[%clk 0:01:27.9]} 28... Kc6 {[%clk 0:01:16]} 29. Bf3+ {[%clk
0:01:17.5]} 29... e4 {[%clk 0:01:16.2]} 30. Be2 {[%clk 0:01:12.9]} 30... Nd5
{[%clk 0:01:14]} 31. Bd4 {[%clk 0:01:12.5]} 31... Nf4 {[%clk 0:01:11.7]} 32. Bf1
{[%clk 0:00:57.7]} 32... Ne6 {[%clk 0:00:59.4]} 33. Be3 {[%clk 0:00:49.6]} 33...
Nc5 {[%clk 0:00:56.2]} 34. Rh4 {[%clk 0:00:42.7]} 34... Nxa4 {[%clk 0:00:53.7]}
35. Bd4 {[%clk 0:00:41.5]} 35... Nc5 {[%clk 0:00:52.4]} 36. Bxc5 {[%clk
0:00:21.5]} 36... Kxc5 {[%clk 0:00:52.5]} 37. Bg2 {[%clk 0:00:22.1]} 37... Re8
{[%clk 0:00:51.6]} 38. Kd2 {[%clk 0:00:21.4]} 38... Re5 {[%clk 0:00:51.6]} 39.
Rg4 {[%clk 0:00:19]} 39... a5 {[%clk 0:00:48.4]} 40. Ke3 {[%clk 0:00:18.8]}
40... a4 {[%clk 0:00:46.4]} 41. Bf1 {[%clk 0:00:14.2]} 41... Rf5 {[%clk
0:00:42.6]} 42. Be2 {[%clk 0:00:12.5]} 42... Rd5 {[%clk 0:00:40.3]} 43. Rg1
{[%clk 0:00:10.7]} 43... Rd8 {[%clk 0:00:38.5]} 44. Rh1 {[%clk 0:00:06.8]} 44...
Ra8 {[%clk 0:00:36.9]} 45. Rd1 {[%clk 0:00:06.7]} 45... a3 {[%clk 0:00:36.4]}
46. b4+ {[%clk 0:00:06.8]} 46... Kc6 {[%clk 0:00:35.4]} 47. Ra1 {[%clk
0:00:07.5]} 47... a2 {[%clk 0:00:35.5]} 48. Bd1 {[%clk 0:00:08.1]} 48... Ra3
{[%clk 0:00:35.7]} 49. Kd4 {[%clk 0:00:07.3]} 49... Kd6 {[%clk 0:00:35]} 50. Bc2
{[%clk 0:00:06.9]} 50... f5 {[%clk 0:00:33.3]} 51. gxf6 {[%clk 0:00:06.7]} 51...
gxf6 {[%clk 0:00:33.8]} 52. Bxe4 {[%clk 0:00:06.7]} 52... Bxe4 {[%clk 0:00:34]}
53. Kxe4 {[%clk 0:00:07.6]} 53... Ke6 {[%clk 0:00:28.5]} 54. Kd4 {[%clk
0:00:07.5]} 54... Kf5 {[%clk 0:00:27.1]} 55. Kc5 {[%clk 0:00:05.1]} 55... Rxc3+
{[%clk 0:00:24.7]} 56. Kxb5 {[%clk 0:00:05.7]} 56... Rc2 {[%clk 0:00:25.3]} 57.
Ka6 {[%clk 0:00:03.6]} 57... Rxf2 {[%clk 0:00:25.3]} 58. b5 {[%clk 0:00:04.3]}
58... Rb2 {[%clk 0:00:25.5]} 59. b6 {[%clk 0:00:04.9]} 59... Ke4 {[%clk
0:00:19.7]} 60. b7 {[%clk 0:00:05.4]} 60... f5 {[%clk 0:00:19.8]} 61. Ka7 {[%clk
0:00:06]} 61... f4 {[%clk 0:00:20]} 62. b8=Q {[%clk 0:00:06.7]} 62... Rxb8
{[%clk 0:00:20.3]} 63. Kxb8 {[%clk 0:00:07.6]} 63... f3 {[%clk 0:00:20.8]} 64.
Rxa2 {[%clk 0:00:08.3]} 64... Ke3 {[%clk 0:00:21.5]} 65. Kc7 {[%clk 0:00:08.9]}
65... f2 {[%clk 0:00:21.9]} 66. Ra3+ {[%clk 0:00:09.3]} 66... Ke2 {[%clk
0:00:22.3]} 67. Ra2+ {[%clk 0:00:09.9]} 67... Ke1 {[%clk 0:00:22.9]} 68. Ra1+
{[%clk 0:00:10.5]} 68... Ke2 {[%clk 0:00:23.5]} 69. Kd6 {[%clk 0:00:11.2]} 69...
f1=Q {[%clk 0:00:23.2]} 70. Rxf1 {[%clk 0:00:11.8]} 70... Kxf1 {[%clk
0:00:24.1]} 1/2-1/2